bitfinex/quotes_SOLUSD_20250131
["timestamp","ask_amount","ask_price","bid_price","bid_amount"]
[1738337526482,0.12549,240.23,240.15,19.97]
[1738337526676,0.78070485,240.22,240.15,19.97]
[1738337526875,20.0,240.25,240.16,0.30670326]
[1738337527288,0.78054166,240.24,240.16,0.30670326]
[1738337527579,0.78054166,240.24,240.16,0.30652153]
[1738337527898,0.78054166,240.24,240.15,19.97]
[1738337528078,20.0,240.19,240.15,19.97]
[1738337528273,6.6634,240.22,240.15,19.97]
[1738337528474,6.6634,240.22,240.16,0.30654504]
[1738337529199,6.6634,240.22,240.15,19.97]
[1738337529598,20.0,240.19,240.15,19.97]
[1738337530276,23.15721591,240.18,240.06,0.30679314]
[1738337530474,23.15721591,240.18,240.02,0.063]
[1738337530894,22.15721591,240.18,240.02,0.063]
[1738337531094,23.15721591,240.18,240.02,0.063]
[1738337531476,0.78074591,240.18,240.02,0.063]
[1738337531699,1.0,240.33,240.1,20.06749305]
[1738337531700,6.3121,240.28,240.1,20.06749305]
[1738337531999,20.0,240.25,240.12,20.06749305]
[1738337532182,0.78050713,240.26,240.13,0.30632396]
[1738337532392,0.03,240.27,240.14,20.06749305]
[1738337532703,0.03,240.27,240.16,20.06749305]
[1738337532997,0.03,240.27,240.17,0.30616327]
[1738337533206,0.03,240.27,240.18,20.06749305]
[1738337533407,0.03,240.27,240.22,20.06749305]
[1738337533578,0.03,240.27,240.24,20.06749305]
[1738337533777,0.03,240.27,240.25,0.30558685]
[1738337536075,0.03,240.27,240.13,0.063]
[1738337536277,1.0,240.26,240.13,0.063]
[1738337536505,0.81062976,240.27,240.13,0.063]
[1738337536679,0.25098,240.26,240.13,0.063]
[1738337537013,20.0,240.22,240.13,0.063]
[1738337537298,0.78062809,240.21,240.13,0.063]
[1738337537879,20.0,240.22,240.13,0.063]
[1738337538098,0.78062475,240.21,240.13,0.063]
[1738337538500,0.25098,240.2,240.13,0.063]
[1738337538702,0.78085615,240.19,240.13,0.063]
[1738337539082,1.78085615,240.19,240.13,0.063]
[1738337539287,1.78085615,240.19,240.02,1.6658]
[1738337539918,0.78085615,240.19,240.02,1.6658]
[1738337540217,0.78085615,240.19,240.04,20.06749305]
[1738337540389,0.78080669,240.2,240.04,20.06749305]
[1738337540583,0.78073807,240.21,240.03,4.1661]
[1738337540785,20.78068399,240.22,240.08,20.06749305]
[1738337540984,8.0015,240.25,240.1,20.06749305]
[1738337541239,8.0015,240.25,240.12,20.06749305]
[1738337541514,8.0015,240.25,240.14,20.06749305]
[1738337542302,8.0015,240.25,240.12,20.06749305]
[1738337542529,8.0015,240.25,240.14,20.06749305]
[1738337542816,6.4169,240.25,240.14,20.06749305]
[1738337543193,0.03,240.27,240.14,20.06749305]
[1738337543415,0.03,240.27,240.16,20.06749305]
[1738337544097,20.03,240.27,240.14,23.18749305]
[1738337544405,20.03,240.27,240.16,20.06749305]
[1738337544614,0.03,240.27,240.18,20.06749305]
[1738337544928,0.03,240.27,240.2,20.06749305]
[1738337545990,0.03,240.27,240.22,20.06749305]
[1738337546308,0.03,240.27,240.24,20.06749305]
[1738337546510,0.03,240.27,240.2,3.1]
[1738337546893,0.03,240.27,240.21,33.47934158]
[1738337547112,0.03,240.27,240.22,0.12549]
[1738337548688,0.03,240.27,240.18,13.41184853]
[1738337549095,0.03,240.27,240.16,13.41184853]
[1738337549294,0.03,240.27,240.17,0.12549]
[1738337549510,0.03,240.27,240.18,13.41184853]
[1738337549822,0.03,240.27,240.15,8.8789]
[1738337549823,0.03,240.27,240.16,0.25098]
[1738337550030,0.03,240.27,240.16,17.57564853]
[1738337550224,0.03,240.27,240.15,3.1]
[1738337551112,0.03,240.27,240.16,13.41184853]
[1738337552404,0.03,240.27,240.22,13.41184853]
[1738337553528,0.03,240.27,240.21,24.23049305]
[1738337554835,0.03,240.27,240.21,23.16749305]
[1738337555015,0.03,240.27,240.21,3.1]
[1738337555618,0.03,240.27,240.16,3.08]
[1738337556929,0.03,240.27,240.15,3.08]
[1738337558540,0.03,240.27,240.12,7.36989]
[1738337558712,0.03,240.27,240.12,3.20549]
[1738337559036,0.03,240.27,240.1,4.6814]
[1738337559217,0.03,240.27,240.1,1.6014]
[1738337559555,0.03,240.27,240.11,3.08]
[1738337559722,7.8504,240.26,240.11,3.08]
[1738337560315,7.8504,240.26,240.11,3.143]
[1738337560819,20.0,240.23,240.11,0.063]
[1738337563016,0.78058261,240.22,240.11,0.063]
[1738337564125,1.0,240.2,240.11,0.063]
[1738337564325,0.78080844,240.19,240.11,0.063]
[1738337564726,20.0,240.15,240.11,0.063]
[1738337564919,0.78084906,240.14,240.11,0.063]
[1738337565121,0.78084906,240.14,240.02,0.063]
[1738337565321,20.0,240.15,240.02,0.063]
[1738337566819,20.78086694,240.15,240.02,0.063]
[1738337567840,0.78090482,240.14,240.02,0.063]
[1738337568835,20.0,240.1,240.02,0.063]
[1738337569432,21.03529523,240.1,240.02,0.063]
[1738337569628,21.81636002,240.1,240.02,0.063]
[1738337569948,1.0,240.04,239.9,0.063]
[1738337570122,0.78126695,240.03,239.9,0.063]
[1738337571446,20.0,240.06,239.9,0.31398]
[1738337572560,20.0,240.06,239.91,20.06749305]
[1738337572749,21.0600199,240.06,239.91,20.06749305]
[1738337572953,20.0,240.06,239.92,0.12549]
[1738337573131,20.0,240.06,239.94,0.12549]
[1738337573332,37.5825,240.09,239.96,0.12549]
[1738337573726,37.5825,240.09,239.93,20.06749305]
[1738337574243,37.5825,240.09,239.94,0.12549]
[1738337574640,7.5825,240.09,239.96,0.25098]
[1738337574839,7.5825,240.09,239.98,0.25098]
[1738337575170,6.0311,240.09,240.0,0.12549]
[1738337575461,6.0311,240.09,240.0,0.25098]
[1738337576247,7.9388,240.15,240.02,0.25098]
[1738337576458,7.9388,240.15,240.03,20.06749305]
[1738337576948,7.9388,240.15,240.04,0.12549]
[1738337577150,6.2779,240.15,240.06,0.12549]
[1738337577360,0.03,240.15,240.06,0.12549]
[1738337577656,0.03,240.15,240.06,13.91380853]
[1738337578039,0.03,240.15,240.06,18.07930853]
[1738337578635,0.03,240.15,240.06,0.12549]
[1738337578865,0.03,240.15,240.04,13.91380853]
[1738337579168,0.03,240.15,240.03,20.06749305]
[1738337579169,0.03,240.15,240.02,3.08]
[1738337579338,0.03,240.15,240.03,0.25098]
[1738337580362,0.03,240.15,240.01,3.08]
[1738337580959,0.03,240.15,240.0,13.41184853]
[1738337580960,20.0,240.1,239.96,3.06]
[1738337581372,20.0,240.1,239.97,0.25098]
[1738337581673,20.0,240.1,239.97,13.66282853]
[1738337581964,0.03,240.15,240.07,20.06749305]
[1738337582339,0.03,240.15,240.06,0.12549]
[1738337584751,0.03,240.15,240.0,3.06]
[1738337584966,0.81084465,240.15,239.97,3.06]
[1738337585275,0.81084465,240.15,239.96,13.41184853]
[1738337585567,0.03,240.15,240.02,0.12549]
[1738337585770,0.03,240.15,240.03,32.48063209]
[1738337585933,0.03,240.15,240.04,0.12549]
[1738337586332,0.03,240.15,240.04,13.91380853]
[1738337586736,0.03,240.15,239.97,32.48063209]
[1738337587068,20.81085343,240.15,239.96,0.50196]
[1738337587437,20.81085343,240.15,239.98,0.25098]
[1738337587941,0.03,240.15,239.98,0.12549]
[1738337588153,0.78088385,240.14,239.96,13.41184853]
[1738337588349,0.78088385,240.14,239.97,0.50196]
[1738337588543,0.78088385,240.14,239.97,0.25098]
[1738337588739,1.78088385,240.14,239.97,0.12549]
[1738337589151,1.78088385,240.14,239.96,0.50196]
[1738337589758,20.0,240.1,239.94,16.47184853]
[1738337589936,1.5799,240.08,239.94,16.47184853]
[1738337590136,1.5799,240.08,239.95,0.25098]
[1738337590534,1.5799,240.08,239.97,0.25098]
[1738337591071,1.5799,240.08,239.97,32.48063209]
[1738337591373,1.5799,240.08,239.98,0.12549]
[1738337592761,8.2186,240.13,239.99,32.85710209]
[1738337592966,8.2186,240.13,240.02,0.12549]
[1738337593265,0.03,240.15,240.06,0.12549]
[1738337593639,0.03,240.15,240.03,32.48063209]
[1738337593862,20.81070753,240.15,240.0,13.41184853]
[1738337594250,20.81070753,240.15,239.95,36.64813209]
[1738337594452,20.81070753,240.15,239.96,13.41184853]
[1738337594653,1.5344,240.14,239.97,0.25098]
[1738337594950,20.0,240.09,239.94,3.06]
[1738337595149,20.0,240.09,239.95,0.12549]
[1738337595755,20.0,240.09,239.94,0.25098]
[1738337596059,0.78108667,240.08,239.9,16.53484853]
[1738337596253,6.6445,240.06,239.9,0.063]
[1738337596558,7.42574297,240.06,239.9,0.063]
[1738337596864,20.0,240.03,239.97,0.063]
[1738337598857,20.78121202,240.03,239.97,0.063]
[1738337599056,20.0,240.03,239.97,0.063]
[1738337600344,0.78127569,240.02,239.97,0.063]
[1738337601155,20.78127569,240.02,239.97,0.063]
[1738337602366,0.12549,240.01,239.97,0.063]
[1738337602949,0.12549,240.01,239.9,0.063]
[1738337604373,0.12549,239.99,239.9,0.063]
[1738337604545,1.5885,239.97,239.9,0.063]
[1738337606653,7.6445,240.06,239.91,4.1682]
[1738337606654,1.5364,240.04,239.91,4.1682]
[1738337607383,20.0,240.03,239.9,0.18849]
[1738337607546,20.78125227,240.03,239.9,0.063]
[1738337607752,20.0,240.03,239.9,0.063]
[1738337607972,1.5364,240.04,239.9,0.063]
[1738337608151,6.6445,240.06,239.95,0.25098]
[1738337608355,6.6445,240.06,239.94,20.01459214]
[1738337608356,6.6445,240.06,239.94,3.04]
[1738337608646,6.6445,240.06,239.94,7.2076]
[1738337609574,6.6445,240.06,239.94,27.22219214]
[1738337609744,6.6445,240.06,239.97,0.12549]
[1738337609950,0.03,240.05,240.02,20.01459214]
[1738337610145,0.03,240.05,240.03,0.25098]
[1738337610381,0.03,240.05,240.04,20.26557214]
[1738337610856,0.03,240.05,240.04,0.25098]
[1738337611184,0.03,240.05,240.0,21.64699214]
[1738337611352,0.03,240.05,240.0,1.6324]
[1738337611863,0.03,240.05,240.01,4.41738]
[1738337612256,0.03,240.05,240.01,0.12549]
[1738337612873,0.03,240.05,240.02,0.12549]
[1738337613167,0.03,240.05,240.03,0.25098]
[1738337613372,0.03,240.05,240.04,0.25098]
[1738337613950,0.03,240.05,240.04,0.12549]
[1738337614152,0.03,240.05,240.04,53.67742067]
[1738337615661,0.03,240.05,240.04,53.92840067]
[1738337616055,0.03,240.13,240.09,0.50196]
[1738337616382,0.03,240.13,240.11,13.66282853]
[1738337616693,0.03,240.13,240.12,33.92840067]
[1738337617181,0.03,240.13,240.12,1.79518]
[1738337617359,0.03,240.13,240.1,3.04]
[1738337617777,0.03,240.13,240.11,13.66282853]
[1738337618192,0.03,240.13,240.12,4.66646]
[1738337618362,0.03,240.13,240.12,5.66646]
[1738337618696,0.03,240.15,240.14,0.50196]
[1738337618857,0.03,240.15,240.14,33.92840067]
[1738337620381,0.03,240.15,240.14,38.09260067]
[1738337621678,0.03,240.15,240.14,39.09260067]
[1738337621865,0.03,240.15,240.14,38.09260067]
[1738337622960,0.03,240.15,240.14,7.45518]
[1738337623164,0.03,240.15,240.14,41.13260067]
[1738337623987,0.03,240.15,240.14,40.63260067]
[1738337624489,0.03,240.15,240.14,6.95518]
[1738337624889,0.03,240.15,240.13,3.04]
[1738337625189,0.03,240.15,240.11,3.04]
[1738337625688,0.03,240.15,240.14,20.01459214]
[1738337626495,0.03,240.15,240.14,37.84162067]
[1738337626681,0.03,240.27,240.17,0.12549]
[1738337626988,0.03,240.27,240.19,0.12549]
[1738337627373,0.03,240.27,240.21,0.12549]
[1738337627574,0.03,240.27,240.2,20.39106214]
[1738337627575,0.03,240.27,240.2,40.01459214]
[1738337627973,0.03,240.27,240.25,0.25098]
[1738337628172,0.03,240.27,240.25,0.12549]
[1738337628586,0.03,240.27,240.25,4.28769]
[1738337629706,0.03,240.27,240.26,20.25098]
[1738337629892,0.03,240.27,240.26,53.92840067]
[1738337631474,0.03,240.27,240.26,53.67742067]
[1738337632096,0.03,240.27,240.26,53.92840067]
[1738337632276,0.03,240.27,240.26,40.26557214]
[1738337632609,0.03,240.27,240.24,3.04]
[1738337632610,0.03,240.27,240.24,23.05459214]
[1738337632977,0.03,240.27,240.26,33.92840067]
[1738337633995,1.197,240.44,240.3,20.25098]
[1738337634177,1.197,240.44,240.3,0.25098]
[1738337634578,1.197,240.44,240.28,20.01459214]
[1738337634992,1.197,240.44,240.29,0.25098]
[1738337635379,21.197,240.44,240.29,0.25098]
[1738337635582,21.197,240.44,240.27,0.12549]
[1738337635792,1.03090666,240.43,240.26,3.02]
[1738337636095,0.12549,240.41,240.26,3.02]
[1738337636391,0.90553893,240.41,240.26,3.02]
[1738337636593,20.0,240.39,240.26,3.02]
[1738337638288,0.12549,240.41,240.26,3.02]
[1738337639196,6.43739,240.39,240.26,3.02]
[1738337639375,6.3119,240.39,240.26,3.02]
[1738337640097,7.09192908,240.39,240.26,3.02]
[1738337640281,6.71741908,240.39,240.23,3.0]
[1738337640483,5.93739,240.39,240.23,3.0]
[1738337640696,5.93739,240.39,240.18,21.62819214]
[1738337640697,20.0,240.34,240.18,21.62819214]
[1738337640878,2.34582926,240.33,240.18,3.0]
[1738337641078,2.34582926,240.33,240.15,3.0]
[1738337641498,2.34582926,240.33,240.12,17.57634853]
[1738337641695,20.0,240.29,240.13,3.0]
[1738337641886,0.78045577,240.28,240.11,3.0]
[1738337642088,20.0,240.29,240.12,13.41184853]
[1738337642394,0.78048858,240.31,240.13,0.12549]
[1738337642607,0.78048858,240.31,240.15,0.12549]
[1738337642986,20.78033513,240.32,240.15,0.12549]
[1738337644281,1.0313398,240.3,240.14,4.1641]
[1738337644482,0.25098,240.3,240.14,4.1641]
[1738337645299,20.0,240.28,240.12,0.12549]
[1738337645901,20.0,240.28,240.12,4.28999]
[1738337646498,20.0,240.21,240.13,0.063]
[1738337646700,0.78062557,240.2,240.13,0.063]
[1738337647094,0.12549,240.19,240.13,0.063]
[1738337647402,0.78080309,240.18,240.13,0.063]
[1738337647580,0.12549,240.17,240.13,0.063]
[1738337648088,20.0,240.2,240.13,0.063]
[1738337648287,0.78068501,240.23,240.13,0.063]
[1738337648597,1.05026786,240.23,240.13,0.063]
[1738337648784,20.0,240.21,240.13,0.063]
[1738337649794,7.42558234,240.24,240.13,0.063]
[1738337650001,6.3599,240.24,240.13,0.063]
[1738337651003,0.12549,240.23,240.13,0.063]
[1738337651188,0.25098,240.23,240.13,0.063]
[1738337651389,0.12549,240.2,240.13,0.063]
[1738337651704,0.90621557,240.2,240.13,0.063]
[1738337652622,0.12549,240.2,240.13,0.063]
[1738337652807,20.0,240.21,240.13,0.063]
[1738337653299,0.9061495,240.2,240.13,0.063]
[1738337654009,0.12549,240.19,240.13,0.063]
[1738337654220,0.78082001,240.24,240.13,0.063]
[1738337654387,1.6251,240.25,240.13,4.2273]
[1738337654705,4.1659,240.28,240.19,20.01459214]
[1738337655298,4.1659,240.28,240.17,20.01459214]
[1738337655909,8.1307,240.3,240.17,20.01459214]
[1738337656331,6.5952,240.3,240.19,20.01459214]
[1738337656539,7.5342,240.35,240.23,20.01459214]
[1738337657084,7.5342,240.35,240.18,0.25098]
[1738337657085,7.5342,240.35,240.22,0.12549]
[1738337657490,13.41184853,240.28,240.13,0.063]
[1738337657730,0.12549,240.26,240.13,0.063]
[1738337657908,20.0,240.22,240.13,0.063]
[1738337658296,0.12549,240.2,240.13,0.063]
[1738337658492,0.78074458,240.19,240.13,0.063]
[1738337659022,0.78074458,240.19,240.15,0.063]
[1738337659727,0.78080671,240.2,240.15,0.063]
[1738337660196,0.12549,240.19,240.15,0.063]
[1738337660611,2.31363995,240.21,240.15,0.063]
[1738337661533,1.5966,240.29,240.15,0.063]
[1738337661691,2.37709646,240.29,240.15,0.063]
[1738337661895,0.12549,240.28,240.15,0.063]
[1738337662197,0.78050613,240.27,240.15,0.063]
[1738337662401,0.78056034,240.24,240.15,0.063]
[1738337662631,0.12549,240.23,240.15,0.063]
[1738337662799,0.7806695,240.22,240.15,0.063]
[1738337663329,20.0,240.22,240.15,0.063]
[1738337663503,0.78063707,240.21,240.15,0.063]
[1738337664914,1.01847837,240.24,240.15,0.063]
[1738337665106,1.0,240.31,240.15,0.063]
[1738337665309,0.78051825,240.28,240.15,0.063]
[1738337666105,2.65610909,240.29,240.15,0.063]
[1738337666300,3.43655459,240.29,240.15,0.063]
[1738337666813,0.78048184,240.24,240.15,0.063]
[1738337667017,2.65610909,240.29,240.15,0.063]
[1738337667214,6.1363,240.32,240.17,0.12549]
[1738337667419,6.1363,240.32,240.15,4.227]
[1738337667420,6.1363,240.32,240.18,20.01459214]
[1738337668115,6.1363,240.32,240.16,20.01459214]
[1738337668305,6.1363,240.32,240.16,0.25098]
[1738337668841,6.1363,240.32,240.16,32.70523019]
[1738337669121,6.1363,240.32,240.17,3.08]
[1738337669539,6.0923,240.38,240.18,13.41184853]
[1738337669701,6.0923,240.38,240.28,32.45425019]
[1738337670022,6.0923,240.38,240.26,32.45425019]
[1738337670198,6.0923,240.38,240.25,0.25098]
[1738337670399,20.0,240.35,240.2,32.45425019]
[1738337670803,20.0,240.35,240.18,50.02949872]
[1738337671005,20.0,240.35,240.18,50.09249872]
[1738337671204,20.0,240.35,240.18,45.92909872]
[1738337671511,0.78023987,240.34,240.18,0.063]
[1738337671823,0.25098,240.33,240.18,0.063]
[1738337672020,0.78035125,240.32,240.18,0.063]
[1738337673326,21.04259464,240.35,240.18,32.51725019]
[1738337673530,1.04259464,240.35,240.2,32.45425019]
[1738337673829,0.12549,240.34,240.2,32.45425019]
[1738337673996,0.78023151,240.33,240.18,0.063]
[1738337674443,20.0,240.35,240.2,32.45425019]
[1738337674727,13.41184853,240.37,240.24,32.45425019]
[1738337674933,6.0923,240.38,240.24,32.45425019]
[1738337675316,19.50414853,240.38,240.22,32.45425019]
[1738337675503,20.0,240.35,240.2,0.12549]
[1738337675919,20.0,240.35,240.18,0.063]
[1738337675920,0.78021784,240.34,240.18,3.363]
[1738337676130,20.0,240.3,240.18,3.363]
[1738337677000,6.4349,240.28,240.18,0.063]
[1738337677334,14.19225669,240.27,240.18,0.063]
[1738337678009,6.4349,240.28,240.18,0.063]
[1738337678405,20.0,240.25,240.18,0.063]
[1738337678622,13.53733853,240.27,240.18,0.063]
[1738337678804,20.0,240.24,240.18,0.063]
[1738337679227,20.78049694,240.24,240.18,0.063]
[1738337679646,20.0,240.24,240.18,0.063]
[1738337680416,0.78059611,240.26,240.18,0.063]
[1738337680631,20.0,240.25,240.18,0.063]
[1738337682762,13.53733853,240.24,240.18,0.063]
[1738337683258,20.0,240.25,240.18,0.063]
[1738337683830,6.4349,240.28,240.18,0.063]
[1738337684362,19.84674853,240.28,240.18,0.063]
[1738337684565,0.12549,240.26,240.18,0.063]
[1738337684723,20.0,240.21,240.15,0.063]
[1738337685551,20.0,240.25,240.15,0.063]
[1738337685739,1.0,240.38,240.15,36.68125019]
[1738337685932,19.66924853,240.34,240.17,32.45425019]
[1738337686426,20.0,240.31,240.17,32.45425019]
[1738337686634,0.12549,240.33,240.17,32.45425019]
[1738337686844,20.0,240.31,240.15,32.51725019]
[1738337687144,13.53733853,240.33,240.15,32.51725019]
[1738337687346,13.53733853,240.33,240.15,36.68125019]
[1738337687552,20.0,240.31,240.17,32.45425019]
[1738337687729,20.0,240.31,240.19,32.45425019]
[1738337688230,20.0,240.31,240.18,3.32]
[1738337689353,20.0,240.31,240.19,19.96998714]
[1738337689646,20.0,240.31,240.18,3.32]
[1738337689647,13.44184853,240.39,240.23,19.96998714]
[1738337690337,13.44184853,240.39,240.2,0.12549]
[1738337690338,13.44184853,240.39,240.21,19.96998714]
[1738337690532,20.0,240.36,240.21,19.96998714]
[1738337690734,13.44184853,240.39,240.19,24.25877714]
[1738337690944,13.41184853,240.35,240.18,3.32]
[1738337691126,20.0,240.32,240.18,3.32]
[1738337691529,13.41184853,240.31,240.16,1.5597]
[1738337691744,0.78039088,240.3,240.15,0.063]
[1738337691948,20.0,240.3,240.15,0.063]
[1738337692952,6.5154,240.28,240.15,0.063]
[1738337694450,14.19230579,240.27,240.15,0.063]
[1738337694663,6.5154,240.28,240.15,0.063]
[1738337694865,20.0,240.25,240.15,0.063]
[1738337698243,6.5154,240.28,240.15,0.063]
[1738337698958,1.6391,240.29,240.16,0.12549]
[1738337699254,6.0055,240.34,240.18,0.12549]
[1738337699869,0.03,240.39,240.2,0.37647]
[1738337700042,0.03,240.39,240.21,4.163]
[1738337700235,0.03,240.39,240.2,0.37647]
[1738337700436,20.0,240.36,240.19,6.2723]
[1738337700869,20.0,240.36,240.2,0.37647]
[1738337701332,14.46768588,240.39,240.2,0.37647]
[1738337701549,20.0,240.36,240.21,1.5652]
[1738337702171,20.78016285,240.36,240.21,1.5652]
[1738337702671,14.46768588,240.39,240.15,1.5811]
[1738337702672,20.0,240.32,240.15,1.5811]
[1738337702872,0.81034779,240.31,240.15,4.8611]
[1738337703281,0.03,240.31,240.15,4.8611]
[1738337704554,6.4427,240.29,240.15,0.063]
[1738337704760,20.0,240.26,240.15,0.063]
[1738337704967,13.41184853,240.24,240.15,0.063]
[1738337705171,0.78062692,240.23,240.15,0.063]
[1738337705899,20.0,240.26,240.15,0.063]
[1738337706191,6.4427,240.29,240.15,0.063]
[1738337707086,20.63495845,240.29,240.15,0.063]
[1738337707294,20.0,240.25,240.15,0.063]
[1738337707464,14.19239526,240.24,240.15,0.063]
[1738337707666,20.0,240.21,240.15,0.063]
[1738337708296,20.0,240.24,240.15,0.063]
[1738337708665,0.12549,240.22,240.15,0.063]
[1738337708863,6.6438,240.17,239.98,4.1669]
[1738337709183,0.78084383,240.16,239.97,36.47162039]
[1738337709380,8.2991,240.17,240.0,20.0]
[1738337709598,9.07992745,240.17,240.0,20.0]
[1738337709979,8.2991,240.17,240.01,0.12549]
[1738337710282,6.0139,240.22,240.04,0.12549]
[1738337710489,6.79457886,240.22,240.04,0.12549]
[1738337710997,20.0,240.19,240.04,0.12549]
[1738337711368,20.0,240.19,240.04,4.29139]
[1738337712725,0.78068145,240.18,240.0,20.0]
[1738337712879,20.78068145,240.18,239.98,4.1669]
[1738337713199,20.0,240.14,239.97,36.47162039]
[1738337713383,0.78096825,240.13,239.97,36.47162039]
[1738337714068,1.8171934,240.13,239.97,1.7097]
[1738337714269,0.78096825,240.13,239.97,0.063]
[1738337714488,26.0868,240.09,239.97,0.063]
[1738337714689,0.78110705,240.08,239.97,0.063]
[1738337714895,20.0,240.04,239.97,0.063]
[1738337715063,14.19311118,240.03,239.97,0.063]
[1738337715669,20.0,240.0,239.97,0.0001]
[1738337715891,0.78140832,239.99,239.97,0.0001]
[1738337716078,20.0,240.0,239.97,0.0001]
[1738337716910,20.0,240.0,239.93,0.063]
[1738337716911,14.31869506,239.99,239.93,0.063]
[1738337717101,20.0,239.96,239.9,0.063]
[1738337717418,0.9070141,239.95,239.9,0.063]
[1738337717725,6.2295,239.94,239.9,0.063]
[1738337718309,13.41184853,239.99,239.97,0.063]
[1738337718630,30.0,239.98,239.97,0.063]
[1738337718798,20.0,239.95,239.9,0.063]
[1738337719198,30.0,239.98,239.9,0.063]
[1738337719626,20.0,239.97,239.9,0.063]
[1738337720023,0.78147371,239.96,239.9,0.063]
[1738337720196,20.0,239.95,239.9,0.063]
[1738337720397,0.78157616,239.94,239.9,0.063]
[1738337720593,20.78157963,239.97,239.9,0.063]
[1738337720815,20.0,239.93,239.9,0.063]
[1738337721409,20.0,239.96,239.9,0.063]
[1738337722028,20.0,239.97,239.9,0.063]
[1738337722832,0.7814669,239.96,239.9,0.063]
[1738337723804,20.0,239.97,239.9,0.063]
[1738337724509,13.41184853,240.05,239.9,0.063]
[1738337724710,6.6495,240.06,239.9,0.063]
[1738337724910,0.78122759,240.05,239.9,0.063]
[1738337725126,20.0,240.03,239.9,0.063]
[1738337726805,6.6495,240.06,239.9,4.2313]
[1738337727007,7.43062248,240.06,239.9,4.2313]
[1738337727203,6.6495,240.06,239.9,4.2313]
[1738337727520,5.8724,240.09,239.91,0.12549]
[1738337727753,0.78114772,240.1,239.91,0.12549]
[1738337728338,0.78105012,240.12,239.94,0.25098]
[1738337728502,7.33636925,240.13,239.95,0.12549]
[1738337728704,20.0,240.1,239.95,312.12549]
[1738337728906,13.41184853,240.16,239.95,312.12549]
[1738337728907,6.3939,240.2,240.01,0.12549]
[1738337729133,20.83086957,240.2,240.01,0.12549]
[1738337729307,13.411848,240.2,240.06,0.12549]
[1738337729501,1.0608314,240.23,240.06,0.12549]
[1738337729709,0.78062996,240.25,240.06,20.12549]
[1738337730446,7.17449257,240.26,240.08,4.29069]
[1738337730621,0.78059257,240.28,240.08,24.29069]
[1738337730938,0.03,240.1,240.08,24.29069]
[1738337731337,0.03,240.1,240.05,3.24]
[1738337733028,0.03,240.1,240.08,5.0]
[1738337737616,0.03,240.1,240.08,10.0]
[1738337739954,0.03,240.1,240.08,15.0]
[1738337740135,0.03,240.1,240.08,19.1651]
[1738337741151,0.03,240.1,240.09,3.61647]
[1738337741445,0.03,240.31,240.13,1.77629]
[1738337741653,20.03,240.31,240.13,1.77629]
[1738337741833,0.81030399,240.31,240.13,1.77629]
[1738337742168,33.41184853,240.3,240.13,313.6508]
[1738337742444,20.0,240.25,240.13,1.6508]
[1738337742655,0.78057748,240.24,240.13,1.6508]
[1738337742822,20.0,240.25,240.13,1.6508]
[1738337743651,20.0,240.21,240.08,20.0]
[1738337743843,0.78075397,240.2,240.08,20.0]
[1738337745250,0.12549,240.19,240.08,20.0]
[1738337745436,0.78081345,240.18,240.08,20.0]